[Event "98th Caplin Hastings Masters 2024-25"]
[Site "Hastings"]
[Date "2024.12.31"]
[Round "6.37"]
[White "Suez-Panama, Gilles"]
[Black "Rubeck, Jonathan"]
[Result "1-0"]
[ECO "E14"]
[WhiteElo "1979"]
[BlackElo "1824"]
[Annotator "NA RC"]
[PlyCount "63"]
[EventDate "2024.12.23"]
[EventType "swiss"]
[EventCountry "ENG"]
[SourceTitle "playchess.com"]
[Source "ChessBase"]
[SourceQuality "1"]
[TimeControl "5400+30"]

1. Nf3 {[%emt 0:00:02]} d5 {[%emt 0:00:16]} 2. b3 {[%emt 0:00:05]} e6 {[%emt 0:00:21]} 3. Bb2 {[%emt 0:00:11]} Nf6 {[%emt 0:00:06]} 4. e3 {[%emt 0:00:07]} Be7 {[%emt 0:00:06]} 5. d4 {[%emt 0:00:07]} b6 {[%emt 0:00:13]} 6. Bd3 {[%emt 0:01:00]} Bb7 {[%emt 0:00:07]} 7. Nbd2 {[%emt 0:00:14]} Nbd7 {[%emt 0:00:18]} 8. O-O {[%emt 0:00:12]} O-O {[%emt 0:00:10]} 9. c4 {[%emt 0:03:09]} c5 {[%emt 0:00:15]} 10. Qe2 {[%emt 0:00:59]} Re8 {[%emt 0:01:52]} 11. Rfd1 {[%emt 0:01:05]} Ne4 {[%emt 0:01:17]} 12. Nf1 {[%emt 0:01:27]} Bf6 {[%emt 0:04:07]} 13. Rac1 {[%emt 0:02:10]} Qe7 {[%emt 0:01:30]} 14. Ne5 {[%emt 0:03:42]} Nxe5 {[%emt 0:05:23]} 15. dxe5 {[%emt 0:00:06]} Bg5 {[%emt 0:02:16]} 16. f3 {[%emt 0:01:37]} f5 {[%emt 0:00:28]} 17. cxd5 {[%emt 0:02:22]} exd5 {[%emt 0:00:55]} 18. fxe4 {[%emt 0:01:06]} fxe4 {[%emt 0:00:18]} 19. Ba6 {[%emt 0:02:47]} d4 {[%emt 0:02:25]} 20. Bxb7 {[%emt 0:01:24]} Qxb7 {[%emt 0:00:16]} 21. Rb1 {[%emt 0:09:32]} d3 {[%emt 0:00:33]} 22. Qg4 {[%emt 0:00:27]} Bh6 {[%emt 0:00:52]} 23. Rbc1 {[%emt 0:04:31]} Rf8 {[%emt 0:02:15]} 24. Qg3 {[%emt 0:05:09]} Rf5 {[%emt 0:04:21]} 25. Nd2 {[%emt 0:01:47]} g6 {[%emt 0:08:38]} 26. Rf1 {[%emt 0:58:12]} Rg5 {[%emt 0:00:50]} 27. Qh3 {[%emt 0:00:00]} Rh5 {[%emt 0:00:19]} 28. Qe6+ {[%emt 0:00:00]} Kh8 {[%emt 0:00:34]} 29. Rf7 {[%emt 0:00:00]} Qc8 {[%emt 0:02:32]} 30. Qf6+ {[%emt 0:00:00]} Kg8 {[%emt 0:00:22]} 31. e6 {[%emt 0:00:00]} Rf5 {[%emt 0:02:36]} 32. Qh8# {[%emt 0:00:00]} 1-0

[Event "98th Caplin Hastings Masters 2024-25"]
[Site "Hastings"]
[Date "2024.12.31"]
[Round "6.38"]
[White "Kim, Taewoo A"]
[Black "Hu, Junyan"]
[Result "1/2-1/2"]
[ECO "D43"]
[WhiteElo "1863"]
[BlackElo "1933"]
[Annotator "NA RC"]
[PlyCount "97"]
[EventDate "2024.12.23"]
[EventType "swiss"]
[EventCountry "ENG"]
[SourceTitle "playchess.com"]
[Source "ChessBase"]
[SourceQuality "1"]
[TimeControl "5400+30"]

1. d4 {[%emt 0:00:17]} Nf6 {[%emt 0:00:14]} 2. c4 {[%emt 0:00:07]} e6 {[%emt 0:00:06]} 3. Nf3 {[%emt 0:00:11]} d5 {[%emt 0:00:05]} 4. Nc3 {[%emt 0:00:11]} dxc4 {[%emt 0:00:17]} 5. Qa4+ {[%emt 0:00:23]} c6 {[%emt 0:01:13]} 6. Qxc4 {[%emt 0:00:26]} b5 {[%emt 0:00:22]} 7. Qd3 {[%emt 0:00:22]} a6 {[%emt 0:01:05]} 8. e4 {[%emt 0:00:42]} c5 {[%emt 0:01:22]} 9. Be3 {[%emt 0:12:56]} c4 {[%emt 0:02:09]} 10. Qc2 {[%emt 0:02:05]} Bb7 {[%emt 0:01:43]} 11. e5 {[%emt 0:02:29]} Nd5 {[%emt 0:00:57]} 12. Be2 {[%emt 0:07:57]} Nd7 {[%emt 0:05:06]} 13. O-O {[%emt 0:01:39]} Be7 {[%emt 0:03:06]} 14. Nxd5 {[%emt 0:05:09]} Bxd5 {[%emt 0:00:38]} 15. Nd2 {[%emt 0:11:13]} O-O {[%emt 1:19:37]} 16. f4 {[%emt 0:02:16]} f6 {[%emt 0:00:00]} 17. Bf3 {[%emt 0:03:34]} Nb6 {[%emt 0:00:00]} 18. b3 {[%emt 0:08:17]} Rc8 {[%emt 0:00:00]} 19. bxc4 {[%emt 0:01:49]} Nxc4 {[%emt 0:00:00]} 20. Nxc4 {[%emt 0:06:57]} Rxc4 {[%emt 0:00:00]} 21. Qe2 {[%emt 0:00:51]} f5 {[%emt 0:00:00]} 22. Rfc1 {[%emt 0:05:26]} Rxc1+ {[%emt 0:00:00]} 23. Rxc1 {[%emt 0:00:14]} Bc4 {[%emt 0:00:00]} 24. Qd2 {[%emt 0:08:49]} Ba3 {[%emt 0:00:00]} 25. Rd1 {[%emt 0:00:23]} a5 {[%emt 0:00:00]} 26. d5 {[%emt 0:04:06]} Bb4 {[%emt 0:00:00]} 27. Qb2 {[%emt 0:00:47]} exd5 {[%emt 0:00:00]} 28. Bxd5+ {[%emt 0:00:19]} Kh8 {[%emt 0:00:00]} 29. Qd4 {[%emt 0:01:26]} Qc7 {[%emt 0:00:00]} 30. Qb6 {[%emt 0:03:27]} Qxb6 {[%emt 0:00:00]} 31. Bxb6 {[%emt 0:00:02]} Rb8 {[%emt 0:00:00]} 32. Bxc4 {[%emt 0:03:01]} bxc4 {[%emt 0:00:00]} 33. a3 {[%emt 0:04:35]} Bxa3 {[%emt 0:00:00]} 34. Bxa5 {[%emt 0:00:12]} h6 {[%emt 0:00:00]} 35. e6 {[%emt 0:03:08]} Re8 {[%emt 0:00:00]} 36. Bc3 {[%emt 0:01:11]} Rxe6 {[%emt 0:00:00]} 37. Rd8+ {[%emt 0:00:37]} Kh7 {[%emt 0:00:00]} 38. Rc8 {[%emt 0:00:27]} Re4 {[%emt 0:00:00]} 39. Rc7 {[%emt 0:00:20]} Bf8 {[%emt 0:00:00]} 40. Be5 {[%emt 0:00:46]} Re1+ {[%emt 0:00:00]} 41. Kf2 {[%emt 0:00:01]} Rc1 {[%emt 0:00:00]} 42. Rc8 {[%emt 0:00:58]} Ba3 {[%emt 0:00:00]} 43. Rc7 {[%emt 0:00:21]} Rc2+ {[%emt 0:00:00]} 44. Kf3 {[%emt 0:00:15]} Bf8 {[%emt 0:00:00]} 45. Rc8 {[%emt 0:00:17]} Be7 {[%emt 0:00:00]} 46. Rc7 {[%emt 0:00:14]} Bf8 {[%emt 0:00:00]} 47. Rc8 {[%emt 0:00:05]} Be7 {[%emt 0:00:00]} 48. Rc7 {[%emt 0:00:04]} Bf8 {[%emt 0:00:00]} 49. Rc8 {[%emt 0:03:38]} 1/2-1/2

[Event "98th Caplin Hastings Masters 2024-25"]
[Site "Hastings"]
[Date "2024.12.31"]
[Round "6.39"]
[White "Lee, Jungsoo"]
[Black "Ahn, Sungmin"]
[Result "0-1"]
[ECO "B42"]
[WhiteElo "1705"]
[BlackElo "1926"]
[Annotator "NA RC"]
[PlyCount "90"]
[EventDate "2024.12.23"]
[EventType "swiss"]
[EventCountry "ENG"]
[SourceTitle "playchess.com"]
[Source "ChessBase"]
[SourceQuality "1"]
[TimeControl "5400+30"]

1. e4 {[%emt 0:00:03]} c5 {[%emt 0:00:00]} 2. Nf3 {[%emt 0:00:07]} e6 {[%emt 0:00:39]} 3. d4 {[%emt 0:00:07]} cxd4 {[%emt 0:00:01]} 4. Nxd4 {[%emt 0:00:07]} a6 {[%emt 0:00:01]} 5. Bd3 {[%emt 0:00:18]} Nf6 {[%emt 0:00:12]} 6. O-O {[%emt 0:00:29]} Qc7 {[%emt 0:00:09]} 7. c4 {[%emt 0:01:04]} Nc6 {[%emt 0:00:13]} 8. Nxc6 {[%emt 0:02:32]} dxc6 {[%emt 0:00:09]} 9. Qe2 {[%emt 0:00:30]} e5 {[%emt 0:00:06]} 10. Nc3 {[%emt 0:03:34]} Bg4 {[%emt 0:00:15]} 11. f3 {[%emt 0:00:51]} Be6 {[%emt 0:00:24]} 12. Be3 {[%emt 0:00:21]} Be7 {[%emt 0:00:52]} 13. Qf2 {[%emt 0:01:29]} Nd7 {[%emt 0:02:22]} 14. Rac1 {[%emt 0:01:07]} Qa5 {[%emt 0:05:31]} 15. Nd5 {[%emt 0:18:59]} cxd5 {[%emt 0:10:33]} 16. cxd5 {[%emt 0:00:37]} Bxd5 {[%emt 0:00:16]} 17. exd5 {[%emt 0:00:18]} O-O {[%emt 0:01:07]} 18. Qc2 {[%emt 0:07:29]} Nf6 {[%emt 0:01:08]} 19. f4 {[%emt 0:05:21]} Qxd5 {[%emt 0:03:19]} 20. fxe5 {[%emt 0:01:17]} Qxe5 {[%emt 0:00:47]} 21. Rf3 {[%emt 0:06:10]} Rad8 {[%emt 0:08:15]} 22. Rcf1 {[%emt 0:02:54]} Rc8 {[%emt 0:08:41]} 23. Qa4 {[%emt 0:03:11]} Rfd8 {[%emt 0:07:41]} 24. Bf5 {[%emt 0:02:38]} Rc6 {[%emt 0:09:41]} 25. Qh4 {[%emt 0:01:33]} Bc5 {[%emt 0:00:32]} 26. Bxh7+ {[%emt 0:01:17]} Kf8 {[%emt 0:01:35]} 27. Bxc5+ {[%emt 0:01:34]} Qxc5+ {[%emt 0:00:24]} 28. Kh1 {[%emt 0:00:41]} Rd4 {[%emt 0:02:45]} 29. Qh3 {[%emt 0:02:07]} Qg5 {[%emt 0:02:05]} 30. Bd3 {[%emt 0:01:02]} Rh4 {[%emt 0:03:42]} 31. Qf5 {[%emt 0:03:12]} Qxf5 {[%emt 0:01:06]} 32. Rxf5 {[%emt 0:01:12]} Rd4 {[%emt 0:00:22]} 33. Be2 {[%emt 0:02:54]} Rc2 {[%emt 0:00:46]} 34. Bf3 {[%emt 0:01:19]} Rxb2 {[%emt 0:00:22]} 35. g4 {[%emt 0:00:22]} Nxg4 {[%emt 0:02:35]} 36. Bxg4 {[%emt 0:00:36]} Rxg4 {[%emt 0:00:06]} 37. Rxf7+ {[%emt 0:00:19]} Kg8 {[%emt 0:00:05]} 38. R7f2 {[%emt 0:03:24]} Rbb4 {[%emt 0:02:43]} 39. Rc2 {[%emt 0:01:54]} Kh7 {[%emt 0:00:23]} 40. h3 {[%emt 0:00:29]} Rg3 {[%emt 0:01:27]} 41. Kh2 {[%emt 0:00:15]} Ra3 {[%emt 0:00:25]} 42. Kg2 {[%emt 0:00:55]} Rba4 {[%emt 0:01:33]} 43. Rff2 {[%emt 0:00:14]} b5 {[%emt 0:00:59]} 44. Kh2 {[%emt 0:01:21]} Rh4 {[%emt 0:00:21]} 45. Rc7 {[%emt 0:01:13]} Raxh3+ {[%emt 0:26:22]} 0-1

[Event "98th Caplin Hastings Masters 2024-25"]
[Site "Hastings"]
[Date "2024.12.31"]
[Round "6.40"]
[White "Choi, Hyunbin"]
[Black "Jukes, Sam"]
[Result "0-1"]
[ECO "C56"]
[WhiteElo "1673"]
[BlackElo "1911"]
[Annotator "NA RC"]
[PlyCount "46"]
[EventDate "2024.12.23"]
[EventType "swiss"]
[EventCountry "ENG"]
[SourceTitle "playchess.com"]
[Source "ChessBase"]
[SourceQuality "1"]
[TimeControl "5400+30"]

1. e4 {[%emt 0:00:08]} e5 {[%emt 0:00:17]} 2. Nf3 {[%emt 0:00:07]} Nc6 {[%emt 0:00:03]} 3. Bc4 {[%emt 0:00:14]} Nf6 {[%emt 0:00:08]} 4. d4 {[%emt 0:00:18]} exd4 {[%emt 0:00:32]} 5. e5 {[%emt 0:00:07]} d5 {[%emt 0:00:26]} 6. Bb5 {[%emt 0:00:07]} Nd7 {[%emt 0:00:21]} 7. O-O {[%emt 0:03:06]} Be7 {[%emt 0:00:06]} 8. Bxc6 {[%emt 0:01:02]} bxc6 {[%emt 0:00:08]} 9. Nxd4 {[%emt 0:00:26]} Nb8 {[%emt 0:00:13]} 10. f4 {[%emt 0:01:35]} c5 {[%emt 0:05:05]} 11. Nf3 {[%emt 0:00:15]} O-O {[%emt 0:03:28]} 12. Be3 {[%emt 0:05:46]} Nc6 {[%emt 0:10:56]} 13. Nbd2 {[%emt 0:00:49]} f6 {[%emt 0:01:19]} 14. c3 {[%emt 0:06:17]} fxe5 {[%emt 0:04:09]} 15. fxe5 {[%emt 0:00:13]} a5 {[%emt 0:05:02]} 16. Nb3 {[%emt 0:00:41]} Bg4 {[%emt 0:02:49]} 17. Bxc5 {[%emt 0:03:27]} Bxc5+ {[%emt 0:00:37]} 18. Nxc5 {[%emt 0:00:16]} Nxe5 {[%emt 0:00:57]} 19. Qd4 {[%emt 0:01:23]} Nxf3+ {[%emt 0:00:28]} 20. gxf3 {[%emt 0:00:23]} Bh3 {[%emt 0:00:44]} 21. Rf2 {[%emt 0:02:32]} Qg5+ {[%emt 0:04:43]} 22. Kh1 {[%emt 0:00:04]} Rae8 {[%emt 0:00:16]} 23. Rg1 {[%emt 0:00:26]} Qxg1+ {[%emt 0:00:46]} 0-1

[Event "98th Caplin Hastings Masters 2024-25"]
[Site "Hastings"]
[Date "2024.12.31"]
[Round "6.41"]
[White "Brown, Tom"]
[Black "Zhou, Yang-Fan"]
[Result "0-1"]
[ECO "A45"]
[WhiteElo "1932"]
[BlackElo "2424"]
[Annotator "TA"]
[PlyCount "24"]
[EventDate "2024.12.23"]
[EventType "swiss"]
[EventCountry "ENG"]
[SourceTitle "playchess.com"]
[Source "ChessBase"]
[SourceQuality "1"]
[TimeControl "5400+30"]

{[%evp 9,24,2,0,-8,15,-40,-47,-129,-121,-126,-115,-120,-63,-334,-332,-316,-321]} 1. d4 {[%emt 0:00:04]} Nf6 {[%emt 0:03:29]} 2. Bg5 {[%emt 0:00:20]} c5 {[%emt 0:00:11]} 3. d5 {[%emt 0:01:25]} Ne4 {[%emt 0:00:06]} 4. h4 {[%emt 0:00:18]} h6 {[%emt 0:00:41]} 5. Bc1 {[%emt 0:06:14]} e6 {[%emt 0:00:33]} 6. dxe6 {[%emt 0:01:05]} fxe6 {[%emt 0:07:16]} (6... dxe6 {simplifies} 7. Qxd8+ Kxd8 8. Nd2 Nxd2 9. Bxd2 Kc7) 7. Qd3 {[%emt 0:04:11]} (7. e3 $11) 7... d5 $15 {[%emt 0:00:53]} 8. Nd2 {[%emt 0:10:25] [#]} (8. c4 $1 $15) 8... c4 $1 $17 {[%emt 0:13:43]} 9. Qf3 {[%emt 0:07:39] [#]} Nf6 $1 {[%emt 0:03:45] Active counter play!} 10. g4 {[%emt 0:05:40]} Nc6 {[%emt 0:12:52]} ({Black should try} 10... e5 $17 {[%cal Ob8c6] White must now prevent ...Nc6!.} 11. g5 Ng4) 11. e4 $2 {[%emt 0:17:46][%mdl 8192]} (11. g5 $15 hxg5 12. hxg5) 11... Bc5 $19 {[%emt 0:12:12]} 12. g5 {[%emt 0:05:59]} Nd4 {[%emt 0:03:25][%csl LRc2,LRf3]} 0-1

[Event "98th Caplin Hastings Masters 2024-25"]
[Site "Hastings"]
[Date "2024.12.31"]
[Round "6.42"]
[White "Raffin-Sumyk, Piermael"]
[Black "Vaidyanathan, Sathya"]
[Result "1/2-1/2"]
[ECO "C30"]
[WhiteElo "1512"]
[BlackElo "1908"]
[Annotator "TA"]
[PlyCount "74"]
[EventDate "2024.12.23"]
[EventType "swiss"]
[EventCountry "ENG"]
[SourceTitle "playchess.com"]
[Source "ChessBase"]
[SourceQuality "1"]
[TimeControl "5400+30"]

{[%evp 13,74,-5,-13,-23,-6,-10,20,-27,-12,-113,0,-20,7,-162,-80,-85,0,-47,0,-35,-25,-40,-34,-75,-69,-82,-87,-75,0,0,-11,-24,0,0,14,-25,0,0,1,0,0,0,0,0,42,25,8,0,0,0,0,0,0,0,0,0,10,0,0,0,0,0,47]} 1. e4 {[%emt 0:00:03]} e5 {[%emt 0:01:19]} 2. Nc3 {[%emt 0:00:06]} Nc6 {[%emt 0:00:02]} 3. Bc4 {[%emt 0:00:10]} Nf6 {[%emt 0:00:21]} 4. d3 {[%emt 0:00:30]} Bc5 {[%emt 0:00:23]} 5. f4 {[%emt 0:01:57]} O-O {[%emt 0:01:37]} 6. Nf3 {[%emt 0:00:25]} d6 {[%emt 0:00:53]} 7. f5 {[%emt 0:00:56]} Na5 {[%emt 0:04:56]} 8. Bb3 {[%emt 0:01:37]} Nxb3 {[%emt 0:01:08]} 9. axb3 {[%emt 0:00:07]} h6 {[%emt 0:18:28]} 10. h3 {[%emt 0:05:44]} (10. Nd2 $142) 10... d5 $11 {[%emt 0:03:54]} 11. Qe2 {[%emt 0:12:39] [#]} (11. Nd2 $11 {remains equal.}) 11... dxe4 {[%emt 0:06:05]} (11... Nh5 $1 $17 {[%cal Rh5g3] ...Ng3 is the strong threat.} 12. g4 (12. Nxe5 $2 Ng3 $19) 12... Ng3) 12. dxe4 {[%emt 0:05:42][%cal Og2g4]} Nh5 {[%emt 0:08:45]} 13. Qd2 $2 {[%emt 0:13:42]} (13. g4 $11 Ng3 14. Qc4) 13... Qxd2+ {[%emt 0:02:32]} (13... Ng3 $19 {is more deadly.} 14. Rh2 f6) 14. Bxd2 $17 {[%emt 0:00:30][%cal Og2g4]} Re8 {[%emt 0:07:06]} ({Black should play} 14... Ng3 $17 15. Rh2 f6) 15. O-O-O {[%emt 0:00:55]} (15. g4 $11 Nf6 16. g5 hxg5 17. Bxg5) 15... c6 {[%emt 0:05:04]} (15... b6 $15) 16. Ne2 {[%emt 0:05:52]} (16. g4 $5 Nf6 $8 17. Rhe1 $17) 16... Nf6 {[%emt 0:00:38]} 17. Nc3 {[%emt 0:00:29]} b5 {[%emt 0:06:19]} 18. Rde1 {[%emt 0:11:16]} Bb7 {[%emt 0:06:47]} 19. Be3 {[%emt 0:09:25]} Bb4 {[%emt 0:01:52]} 20. Nd2 {[%emt 0:01:30]} Bxc3 {[%emt 0:01:57]} (20... a5 $17) 21. bxc3 $11 {[%emt 0:00:17]} a5 {[%emt 0:00:16]} 22. Kb2 {[%emt 0:01:05]} a4 {[%emt 0:00:48]} 23. Bc5 {[%emt 0:00:40]} Nd7 {[%emt 0:05:06]} 24. Bf2 {[%emt 0:08:34]} Ra6 {[%emt 0:03:53]} 25. Ra1 {[%emt 0:03:22]} Rea8 {[%emt 0:00:35][%cal Be8a8,Ba8a6,Ba6d6][%mdl 32]} 26. Ra3 {[%emt 0:00:48]} axb3 {[%emt 0:01:32]} 27. Rxa6 {[%emt 0:00:27]} Rxa6 {[%emt 0:00:09]} 28. cxb3 {[%emt 0:00:13]} Nf6 {[%emt 0:00:15][%cal Oc6c5]} 29. Bc5 {[%emt 0:00:59]} Nd7 {[%emt 0:00:21]} 30. Bf2 {[%emt 0:00:10]} c5 {[%emt 0:01:46]} 31. Re1 {[%emt 0:02:34]} g6 {[%emt 0:02:08]} 32. g4 {[%emt 0:02:17]} Rd6 {[%emt 0:02:19]} 33. Kc2 {[%emt 0:00:39]} Ra6 {[%emt 0:00:01]} 34. Kb2 {[%emt 0:00:14]} h5 {[%emt 0:00:49]} 35. Bg3 {[%emt 0:02:09]} hxg4 {[%emt 0:01:11]} 36. hxg4 {[%emt 0:00:07]} Nf6 {[%emt 0:01:52]} 37. g5 {[%emt 0:03:18]} Nh7 {[%emt 0:01:09]} (37... Rd6 $11 {is more appropriate.} 38. Re2 (38. Bxe5 Rxd2+ 39. Kc1 Nd7 $15) 38... Ng4) 1/2-1/2

[Event "98th Caplin Hastings Masters 2024-25"]
[Site "Hastings"]
[Date "2024.12.31"]
[Round "6.43"]
[White "Ruane, Brendan J"]
[Black "Muir, Andrew J"]
[Result "1/2-1/2"]
[ECO "B40"]
[WhiteElo "1869"]
[BlackElo "2214"]
[Annotator "TA"]
[PlyCount "116"]
[EventDate "2024.12.23"]
[EventType "swiss"]
[EventCountry "ENG"]
[SourceTitle "playchess.com"]
[Source "ChessBase"]
[SourceQuality "1"]
[TimeControl "5400+30"]

{[%evp 9,115,58,66,71,68,59,83,81,74,66,146,114,129,108,103,119,97,121,107,87,80,87,106,78,87,6,0,0,0,0,12,6,6,0,0,5,9,0,0,0,0,0,0,0,0,0,0,0,0,-29,-26,-20,-31,-29,0,0,0,0,0,0,0,0,0,0,0,0,0,0,0,-29973,-29972,-29953,0,0,0,0,0,0,0,0,0,0,0,0,0,0,0,0,0,0,0,-4133,0,0,0,0,0,0,0,0,0,0,0,0,0,0,0,0]} 1. Nc3 {[%emt 0:00:06]} c5 {[%emt 0:00:10]} 2. Nf3 {[%emt 0:00:14]} d5 {[%emt 0:01:30]} 3. e4 {[%emt 0:00:23]} e6 {[%emt 0:00:35]} 4. Bb5+ {[%emt 0:01:02]} Nc6 {[%emt 0:00:14]} 5. O-O {[%emt 0:07:02]} a6 {[%emt 0:00:21]} 6. Bxc6+ {[%emt 0:01:01]} bxc6 {[%emt 0:00:05]} 7. e5 {[%emt 0:01:35]} c4 {[%emt 0:00:37]} 8. b3 {[%emt 0:01:17]} cxb3 {[%emt 0:00:31]} 9. axb3 {[%emt 0:00:33]} Nh6 {[%emt 0:01:30]} (9... c5 $14) 10. Na4 {[%emt 0:04:18] White is more active.} c5 {[%emt 0:00:56]} 11. Ba3 {[%emt 0:04:02]} Qc7 {[%emt 0:00:46]} 12. d4 {[%emt 0:00:40]} cxd4 {[%emt 0:00:44]} 13. Bxf8 {[%emt 0:00:39]} ({Don't play} 13. Nxd4 $6 Bxa3 14. Rxa3 Qxe5 $11) 13... Kxf8 {[%emt 0:00:52]} 14. Qxd4 {[%emt 0:01:34]} Nf5 {[%emt 0:00:23]} 15. Qc5+ {[%emt 0:02:21]} Qe7 {[%emt 0:00:46]} 16. Qxe7+ {[%emt 0:00:24]} Kxe7 {[%emt 0:00:11]} 17. Nb6 {[%emt 0:00:20]} (17. g4 $16 Nh6 18. h3) 17... Rb8 $11 {[%emt 0:00:25]} 18. Nxc8+ {[%emt 0:00:13]} Rhxc8 {[%emt 0:00:12]} 19. g4 {[%emt 0:06:26]} Nh6 {[%emt 0:01:58]} 20. h3 {[%emt 0:00:05]} Rb6 {[%emt 0:06:30]} 21. Ra2 {[%emt 0:01:47]} f6 {[%emt 0:01:05]} 22. Rfa1 {[%emt 0:04:29]} Ra8 {[%emt 0:05:50]} 23. b4 {[%emt 0:08:39][%cal Ob4b5]} Nf7 {[%emt 0:01:09]} 24. exf6+ {[%emt 0:05:39]} gxf6 {[%emt 0:00:13]} 25. b5 {[%emt 0:00:06]} Rxb5 {[%emt 0:01:25]} 26. Rxa6 {[%emt 0:00:21]} Rxa6 {[%emt 0:06:35]} 27. Rxa6 {[%emt 0:00:08][%mdl 4096] Endgame KRN-KRN} Nd6 {[%emt 0:11:23]} 28. Kg2 {[%emt 0:04:48]} Rb7 {[%emt 0:01:58]} 29. g5 {[%emt 0:07:24]} fxg5 {[%emt 0:04:00]} 30. Nxg5 {[%emt 0:00:08]} h6 {[%emt 0:09:20]} 31. Nf3 {[%emt 0:00:06]} Rc7 {[%emt 0:00:02]} 32. Nd4 {[%emt 0:07:06]} e5 {[%emt 0:11:54]} 33. Rxd6 {[%emt 0:00:12]} Kxd6 {[%emt 0:00:07] KR-KN} 34. Nb5+ {[%emt 0:00:07]} Kd7 {[%emt 0:00:08]} 35. Nxc7 {[%emt 0:00:07]} Kxc7 {[%emt 0:00:03] K3P-K3P} 36. Kf3 {[%emt 0:00:45]} Kd6 {[%emt 0:01:00]} 37. Kg4 {[%emt 0:02:36]} Ke6 {[%emt 0:00:08]} 38. h4 {[%emt 0:06:02]} Kf6 {[%emt 0:00:53]} 39. Kg3 $2 {[%emt 0:04:06][%mdl 8192]} (39. h5 $11) 39... Kf5 {[%emt 0:01:42]} 40. Kf3 {[%emt 0:02:19]} d4 $2 {[%emt 0:06:31]} (40... h5 {mates} 41. c3 e4+ 42. Ke3 Ke5 43. f3 exf3 44. Kxf3 Kf5 45. Ke3 Kg4 46. Kd4 Kxh4 47. Kxd5 Kg3 48. Ke6 h4 49. Ke7 h3 50. Kd6 h2 51. c4 h1=Q (51... h1=R 52. c5 $11) 52. c5 Kf4 53. c6 Qd1+ 54. Ke6 Qd8 55. c7 Qxc7 56. Kd5 Qa5+ 57. Kd6 Kf5 58. Kd7 Qc5 59. Ke8 Ke6 60. Kd8 Qc4 61. Ke8 Qc8#) 41. Ke2 $1 {[%emt 0:01:45]} Kf4 {[%emt 0:03:04] ( -> ...e4)} (41... Kg4 $5 42. Kd3 $8 Kxh4 $11 (42... Kf3 43. h5 $11)) 42. Kd3 {[%emt 0:03:06]} Kf3 {[%emt 0:06:11]} 43. h5 {[%emt 0:01:38]} Kf4 {[%emt 0:00:29]} (43... Kxf2 $5 44. Ke4 $8 Ke2 $11) 44. c3 {[%emt 0:00:49]} dxc3 {[%emt 0:00:46]} 45. Kxc3 {[%emt 0:00:05] KPP-KPP} Kf3 {[%emt 0:02:30]} 46. Kd3 {[%emt 0:01:56]} Kxf2 {[%emt 0:00:05] ( -> ...Kf3). KPP-KP. Black is a pawn up.} 47. Ke4 {[%emt 0:00:14]} Kg3 {[%emt 0:00:05]} 48. Kxe5 {[%emt 0:00:17] KP-KP} Kg4 {[%emt 0:00:08]} 49. Kf6 {[%emt 0:00:37] Threatening mate with Kg6.} Kxh5 {[%emt 0:00:05] ( -> ...Kg4). KP-K. Black is a pawn up.} 50. Kf5 {[%emt 0:00:10]} Kh4 {[%emt 0:00:04]} 51. Kf4 {[%emt 0:00:15]} Kh3 {[%emt 0:00:06]} (51... h5 $5) 52. Kf3 {[%emt 0:00:40]} h5 {[%emt 0:00:03][%cal Bh6h5,Bh5h4,Bh4h3,Bh3h2][%mdl 32]} 53. Kf2 {[%emt 0:00:20]} Kh2 {[%emt 0:00:03]} 54. Kf1 {[%emt 0:00:34]} h4 {[%emt 0:00:03]} 55. Kf2 {[%emt 0:00:18]} h3 {[%emt 0:00:04]} 56. Kf1 {[%emt 0:00:16][%cal Bf2f1,Bf1g1,Bg1h1][%mdl 32]} Kg3 {[%emt 0:00:03] ( -> ...h2)} (56... Kh1 $5) 57. Kg1 {[%emt 0:00:19]} h2+ {[%emt 0:00:03]} 58. Kh1 {[%emt 0:00:15]} Kh3 {[%emt 0:00:04]} 1/2-1/2

[Event "98th Caplin Hastings Masters 2024-25"]
[Site "Hastings"]
[Date "2024.12.31"]
[Round "6.44"]
[White "Chandler, Cliff R"]
[Black "Butt, Laurence"]
[Result "1-0"]
[ECO "B20"]
[WhiteElo "2161"]
[BlackElo "1818"]
[Annotator "TA"]
[PlyCount "57"]
[EventDate "2024.12.23"]
[EventType "swiss"]
[EventCountry "ENG"]
[SourceTitle "playchess.com"]
[Source "ChessBase"]
[SourceQuality "1"]
[TimeControl "5400+30"]

{[%evp 9,57,-1,50,34,32,34,47,29,27,12,5,14,22,11,52,45,59,-11,37,0,0,0,337,376,414,365,344,302,305,309,536,531,560,535,558,556,551,552,591,591,957,948,987,982,985,963,1256,1280,1320,1327]} 1. e4 {[%emt 0:00:03]} c5 {[%emt 0:04:20]} 2. b4 {[%emt 0:00:25]} b6 {[%emt 0:01:23]} 3. Nf3 {[%emt 0:00:51]} Bb7 {[%emt 0:00:12]} 4. bxc5 {[%emt 0:00:15]} Bxe4 {[%emt 0:00:27]} 5. Nc3 {[%emt 0:00:22]} Bxf3 {[%emt 0:00:26]} (5... Bb7 $11) 6. Qxf3 $14 {[%emt 0:00:17]} Nc6 {[%emt 0:00:15] Black is weak on the light squares} 7. cxb6 {[%emt 0:01:06]} axb6 {[%emt 0:00:03]} 8. Bb5 {[%emt 0:04:32]} Rc8 {[%emt 0:07:38]} 9. Ba3 {[%emt 0:08:42]} e6 {[%emt 0:04:54]} 10. Bxf8 {[%emt 0:01:55]} Kxf8 {[%emt 0:00:10]} 11. O-O {[%emt 0:01:29]} d5 {[%emt 0:01:44]} 12. Rab1 {[%emt 0:03:08]} Nf6 {[%emt 0:02:19]} 13. Rfe1 {[%emt 0:23:37]} (13. Na4 $14) 13... Nd7 {[%emt 0:03:23]} (13... g6 $11 {should be considered.}) 14. Bxc6 {[%emt 0:03:11]} (14. Rxe6 Nd4 15. Qf4 Nxe6 $17) 14... Rxc6 {[%emt 0:00:11]} 15. Nb5 {[%emt 0:00:23]} h5 $2 {[%emt 0:13:20][%mdl 8192]} (15... Kg8 $11 {and Black has nothing to worry.}) 16. Nd4 $1 $18 {[%emt 0:00:43][%csl LRc6,LRe6]} Qc8 {[%emt 0:07:23]} 17. Nxc6 {[%emt 0:02:23]} ({Weaker is} 17. Rxe6 Rxe6 18. Nxe6+ Kg8 $18) 17... Qxc6 {[%emt 0:00:03]} 18. Qa3+ {[%emt 0:02:46]} Kg8 {[%emt 0:02:13]} 19. Qe7 {[%emt 0:01:13]} Qc8 $2 {[%emt 0:06:38] Inhibits Qe8+.} (19... Nf6 20. Rb2 h4) 20. Rb3 {[%emt 0:03:03][%cal Bb1b3,Bb3a3,Ba3a8][%mdl 32]} d4 {[%emt 0:10:07]} 21. Ra3 {[%emt 0:02:17] And now Ra7 would win.} Qf8 {[%emt 0:03:34]} 22. Qxf8+ {[%emt 0:00:34]} Nxf8 {[%emt 0:03:19][%mdl 4096] Endgame KRR-KRN} 23. Re4 {[%emt 0:00:17]} Kh7 {[%emt 0:03:20]} 24. Ra8 {[%emt 0:00:33]} f5 {[%emt 0:02:21]} 25. Rxd4 {[%emt 0:00:12]} Kg6 {[%emt 0:00:07]} 26. Rdd8 {[%emt 0:00:35]} Kf7 {[%emt 0:00:19]} 27. d4 {[%emt 0:00:14]} Ke7 {[%emt 0:00:15]} 28. c4 {[%emt 0:00:15][%cal Bc2c4,Bc4c5][%mdl 32]} g5 {[%emt 0:00:09]} 29. c5 {[%emt 0:00:12]} 1-0